bitfinex-derivatives/quotes_BNBF0:USTF0_20250908
["timestamp","ask_amount","ask_price","bid_price","bid_amount"]
[1757298287553,1.01662063,876.1,875.6,0.19834711]
[1757298287754,1.01662063,876.08,875.6,0.19834711]
[1757298287951,1.01662063,876.16,875.6,0.19834711]
[1757298288453,1.01662063,875.89,875.6,0.19834711]
[1757298289055,1.01662063,875.88,875.6,0.19834711]
[1757298289454,1.01662063,875.87,875.6,0.19834711]
[1757298290551,1.01662063,875.88,875.6,0.19834711]
[1757298291257,1.01662063,875.9,875.6,0.19834711]
[1757298292053,1.01662063,875.89,875.6,0.19834711]
[1757298293156,1.01662063,875.91,875.6,0.19834711]
[1757298293757,1.01662063,875.9,875.6,0.19834711]
[1757298297753,1.01662063,875.86,875.6,0.19834711]
[1757298298454,1.01662063,875.91,875.6,0.19834711]
[1757298300255,1.01662063,875.9,875.6,0.19834711]
[1757298301155,0.76614093,875.86,875.6,0.19834711]
[1757298301655,1.52519983,876.01,875.6,0.19834711]
[1757298302260,1.52519983,876.02,875.6,0.19834711]
[1757298302962,1.52519983,875.95,875.6,0.19834711]
[1757298304060,2.53561964,876.52,875.6,0.19834711]
[1757298304061,1.52519983,876.16,875.6,0.19834711]
[1757298307262,1.52519983,876.15,875.6,0.19834711]
[1757298308261,2.53561964,876.96,875.6,0.19834711]
[1757298308262,1.52519983,876.12,875.6,0.19834711]
[1757298309266,1.52519983,876.11,875.6,0.19834711]
[1757298310262,0.19827139,877.29,875.6,0.19834711]
[1757298310263,1.52519983,876.1,875.6,0.19834711]
[1757298311666,1.52519983,876.04,875.6,0.19834711]
[1757298312270,1.52519983,875.89,875.6,0.19834711]
[1757298312470,1.52519983,875.86,875.6,0.19834711]
[1757298312667,1.52519983,875.87,875.6,0.19834711]
[1757298313368,1.52519983,875.88,875.6,0.19834711]
[1757298314272,1.52519983,875.9,875.6,0.19834711]
[1757298315273,1.52519983,875.91,875.6,0.19834711]
[1757298316273,1.52519983,875.92,875.6,0.19834711]
[1757298316473,3.5498675,877.13,875.6,0.19834711]
[1757298316474,1.52519983,875.9,875.6,0.19834711]
[1757298317275,1.52519983,875.91,875.6,0.19834711]
[1757298318375,1.52519983,875.89,875.6,0.19834711]
[1757298318876,1.52519983,875.9,875.6,0.19834711]
[1757298320174,1.52519983,875.91,875.6,0.19834711]
[1757298320677,1.52519983,875.8,875.6,0.19834711]
[1757298321179,1.52519983,875.81,875.6,0.19834711]
[1757298321382,1.52519983,875.79,875.6,0.19834711]
[1757298322281,1.52519983,875.8,875.6,0.19834711]
[1757298322581,1.52519983,875.78,875.6,0.19834711]
[1757298323478,1.52519983,875.79,875.6,0.19834711]
[1757298324183,1.52519983,875.81,875.6,0.19834711]
[1757298325081,1.52519983,875.82,875.6,0.19834711]
[1757298325485,1.52519983,875.78,875.6,0.19834711]
[1757298326180,1.52519983,875.79,875.6,0.19834711]
[1757298327286,1.52519983,875.8,875.6,0.19834711]
[1757298328285,1.52519983,876.02,875.6,0.19834711]
[1757298329186,1.52519983,876.03,875.6,0.19834711]
[1757298330285,1.52519983,876.04,875.6,0.19834711]
[1757298330486,1.52519983,875.94,875.6,0.19834711]
[1757298331189,1.01447339,875.79,875.6,0.19834711]
[1757298332087,1.01447339,875.8,875.6,0.19834711]
[1757298332288,1.01447339,875.81,875.6,0.19834711]
[1757298332486,1.01447339,875.86,875.6,0.19834711]
[1757298332888,1.01447339,875.87,875.6,0.19834711]
[1757298333092,1.01447339,875.9,875.6,0.19834711]
[1757298335894,1.01447339,875.89,875.6,0.19834711]
[1757298338294,1.01447339,875.63,875.6,0.19834711]
[1757298338495,1.01447339,875.62,875.6,0.19834711]
[1757298340094,1.01447339,875.63,875.6,0.19834711]
[1757298340394,1.01447339,875.67,875.6,0.19834711]
[1757298340594,1.01447339,875.74,875.6,0.19834711]
[1757298340891,1.01447339,875.76,875.6,0.19834711]
[1757298341494,1.01447339,875.75,875.6,0.19834711]
[1757298341792,1.01447339,875.9,875.6,0.19834711]
[1757298342193,1.01447339,875.89,875.6,0.19834711]
[1757298342391,1.52519983,876.12,875.6,0.19834711]
[1757298342392,1.01447339,875.92,875.6,0.19834711]
[1757298343094,1.01447339,875.94,875.6,0.19834711]
[1757298343397,1.01447339,875.96,875.6,0.19834711]
[1757298345198,1.01447339,875.94,875.6,0.19834711]
[1757298346599,1.01447339,875.93,875.6,0.19834711]
[1757298347299,1.01447339,875.97,875.6,0.19834711]
[1757298348305,1.01447339,876.0,875.6,0.19834711]
[1757298349706,1.01447339,875.99,875.6,0.19834711]
[1757298350708,1.01447339,876.0,875.6,0.19834711]
[1757298351209,1.01447339,875.99,875.6,0.19834711]
[1757298351808,1.01447339,875.94,875.6,0.19834711]
[1757298352511,1.01447339,875.91,875.6,0.19834711]
[1757298352911,1.01447339,875.89,875.6,0.19834711]
[1757298353307,1.01447339,875.88,875.6,0.19834711]
[1757298356213,1.01447339,875.87,875.6,0.19834711]
[1757298357114,1.01447339,875.77,875.6,0.19834711]
[1757298357315,1.01447339,875.74,875.6,0.19834711]
[1757298357610,1.01447339,875.75,875.6,0.19834711]
[1757298358014,1.01447339,875.73,875.6,0.19834711]
[1757298358215,1.01447339,875.72,875.6,0.19834711]
[1757298359211,1.01447339,875.71,875.6,0.19834711]
[1757298360714,1.01447339,875.72,875.6,0.19834711]
[1757298361208,1.52519983,875.88,875.6,0.19834711]
[1757298361209,1.01447339,875.71,875.6,0.19834711]
[1757298361711,1.01447339,875.7,875.6,0.19834711]
[1757298362116,1.01447339,875.64,875.6,0.19834711]
[1757298362312,1.01447339,875.63,875.6,0.19834711]
[1757298362516,1.01447339,875.72,875.6,0.19834711]
[1757298363913,1.01447339,875.73,875.6,0.19834711]
[1757298364212,1.01447339,875.72,875.6,0.19834711]
[1757298365218,1.01447339,875.71,875.6,0.19834711]
[1757298365419,1.01447339,875.68,875.6,0.19834711]
[1757298366320,1.01447339,875.67,875.6,0.19834711]
[1757298367020,1.01447339,875.65,875.6,0.19834711]
[1757298367216,1.01447339,875.66,875.6,0.19834711]
[1757298368118,1.01447339,875.65,875.6,0.19834711]
[1757298368421,1.01447339,875.92,875.6,0.19834711]
[1757298368921,1.01447339,876.31,875.6,0.19834711]
[1757298369121,1.01447339,876.47,875.6,0.19834711]
[1757298369320,1.01447339,876.45,875.6,0.19834711]
[1757298370219,1.01447339,876.46,875.6,0.19834711]
[1757298370419,1.01447339,876.16,875.6,0.19834711]
[1757298370622,1.01447339,876.17,875.6,0.19834711]
[1757298371323,1.01447339,876.16,875.6,0.19834711]
[1757298371521,0.19827139,877.29,875.6,0.19834711]
[1757298371522,1.01447339,876.18,875.6,0.19834711]
[1757298371718,1.01447339,876.19,875.6,0.19834711]
[1757298373322,1.01447339,876.2,875.6,0.19834711]
[1757298374327,1.01447339,876.21,875.6,0.19834711]
[1757298376226,1.01447339,876.22,875.6,0.19834711]
[1757298376427,1.01447339,876.2,875.6,0.19834711]
[1757298377120,1.01447339,876.21,875.6,0.19834711]
[1757298378324,1.01447339,875.96,875.6,0.19834711]
[1757298379426,1.01447339,875.97,875.6,0.19834711]
[1757298380229,1.01447339,875.96,875.6,0.19834711]
[1757298381126,1.01447339,875.97,875.6,0.19834711]
[1757298381329,1.01447339,875.87,875.6,0.19834711]
[1757298381531,0.77316053,875.83,875.6,0.19834711]
[1757298382226,1.52519983,875.99,875.6,0.19834711]
[1757298382530,1.52519983,876.0,875.6,0.19834711]
[1757298382831,1.52519983,875.99,875.6,0.19834711]
[1757298384731,1.52519983,876.01,875.6,0.19834711]
[1757298387132,1.52519983,876.0,875.6,0.19834711]
[1757298387435,1.52519983,876.48,875.6,0.19834711]
[1757298387631,1.52519983,876.47,875.6,0.19834711]
[1757298387836,1.52519983,876.46,875.6,0.19834711]
[1757298388034,1.52519983,876.45,875.6,0.19834711]
[1757298388233,1.52519983,876.37,875.6,0.19834711]
[1757298388433,1.52519983,876.42,875.6,0.19834711]
[1757298388938,1.52519983,876.43,875.6,0.19834711]
[1757298390233,1.52519983,876.42,875.6,0.19834711]
[1757298391637,1.52519983,876.41,875.6,0.19834711]
[1757298393235,1.52519983,876.01,875.6,0.19834711]
[1757298394240,1.52519983,876.0,875.6,0.19834711]
[1757298397139,1.52519983,875.99,875.6,0.19834711]
[1757298398041,1.52519983,875.92,875.6,0.19834711]
[1757298398340,2.53561964,876.69,875.6,0.19834711]
[1757298398540,2.53561964,876.49,875.6,0.19834711]
[1757298399043,2.53561964,876.38,875.6,0.19834711]
[1757298399541,2.53561964,876.37,875.6,0.19834711]
[1757298408550,2.53561964,876.32,875.6,0.19834711]
[1757298410652,2.53561964,876.32,875.58,1.286]
[1757298411050,2.53561964,876.32,875.66,0.19834767]
[1757298411449,5.07123928,877.05,875.66,0.19834767]
[1757298411450,1.01723268,875.78,875.66,0.19834767]
[1757298411955,1.01723268,875.79,875.66,0.19834767]
[1757298412154,1.01723268,875.77,875.66,0.19834767]
[1757298412351,1.01723268,875.78,875.66,0.19834767]
[1757298412855,1.01723268,875.75,875.66,0.19834767]
[1757298413754,1.01723268,875.74,875.66,0.19834767]
[1757298414357,1.01723268,875.75,875.66,0.19834767]
[1757298416761,1.01723268,875.72,875.66,0.19834767]
[1757298417958,1.01723268,875.71,875.66,0.19834767]
[1757298418462,0.19827139,877.29,875.66,0.19834767]
[1757298418463,1.01723268,875.96,875.66,0.19834767]
[1757298419562,1.01723268,875.89,875.66,0.19834767]
[1757298421464,1.01723268,875.9,875.66,0.19834767]
[1757298421961,1.52420109,876.17,875.66,0.19834767]
[1757298421962,1.01723268,875.93,875.66,0.19834767]
[1757298422364,1.01723268,875.94,875.66,0.19834767]
[1757298422562,1.01723268,875.93,875.66,0.19834767]
[1757298423366,1.01723268,875.94,875.66,0.19834767]
[1757298424664,1.01723268,875.95,875.66,0.19834767]
[1757298426065,1.01723268,875.94,875.66,0.19834767]
[1757298428466,1.01723268,875.73,875.66,0.19834767]
[1757298429469,1.01723268,875.67,875.66,0.19834767]
[1757298429971,1.52420109,875.88,875.66,0.19834767]
[1757298430368,1.01540367,875.67,875.66,0.19834767]
[1757298431669,1.52420109,875.7,875.66,0.19834767]
[1757298431869,1.52420109,875.69,875.66,0.19834767]
[1757298432066,1.52420109,875.7,875.66,0.19834767]
[1757298432270,1.52420109,875.71,875.66,0.19834767]
[1757298433274,1.52420109,875.7,875.66,0.19834767]
[1757298433469,1.52420109,875.71,875.66,0.19834767]
[1757298433768,1.52420109,875.75,875.66,0.19834767]
[1757298433973,1.52420109,875.74,875.66,0.19834767]
[1757298435770,1.52420109,875.75,875.66,0.19834767]
[1757298435981,1.52420109,875.7,875.66,0.19834767]
[1757298438479,1.52420109,875.71,875.66,0.19834767]
[1757298439280,1.52420109,875.7,875.66,0.19834767]
[1757298440076,1.52420109,875.71,875.66,0.19834767]
[1757298440374,1.52420109,875.7,875.66,0.19834767]
[1757298440574,1.52420109,875.72,875.66,0.19834767]
[1757298441477,1.52420109,875.73,875.66,0.19834767]
[1757298441677,1.52420109,875.69,875.66,0.19834767]
[1757298442077,1.52420109,875.68,875.66,0.19834767]
[1757298443583,2.53561964,876.34,875.66,0.19834767]
[1757298443882,1.52545045,875.67,875.66,0.19834767]
[1757298445378,2.53561964,876.3,875.66,0.19834767]
[1757298445881,2.53561964,876.28,875.66,0.19834767]
[1757298446576,2.53561964,876.27,875.66,0.19834767]
[1757298447379,2.53561964,876.26,875.66,0.19834767]
[1757298448580,2.53561964,876.22,875.66,0.19834767]
[1757298449078,2.53561964,876.28,875.66,0.19834767]
[1757298450683,2.53561964,876.24,875.66,0.19834767]
[1757298451584,2.53561964,876.32,875.66,0.19834767]
[1757298453983,1.52538738,875.75,875.66,0.19834767]
[1757298455287,1.52538738,875.74,875.66,0.19834767]
[1757298458488,1.01728068,875.7,875.66,0.19834767]
[1757298458789,1.01728068,875.69,875.66,0.19834767]
[1757298460393,1.01728068,875.68,875.66,0.19834767]
[1757298461488,1.52538738,875.85,875.66,0.19834767]
[1757298462792,1.52538738,875.83,875.66,0.19834767]
[1757298463390,1.52538738,875.82,875.66,0.19834767]
[1757298463895,2.53561964,876.58,875.66,0.19834767]
[1757298464089,1.01785057,875.72,875.66,0.19834767]
[1757298464290,1.01785057,875.71,875.66,0.19834767]
[1757298465896,1.01785057,875.7,875.66,0.19834767]
[1757298467392,1.01785057,875.69,875.66,0.19834767]
[1757298468197,1.01785057,875.68,875.66,0.19834767]
[1757298468394,1.52677586,875.75,875.66,0.19834767]
[1757298469499,1.52677586,875.74,875.66,0.19834767]
[1757298470395,1.52677586,875.72,875.66,0.19834767]
[1757298471298,1.52677586,875.71,875.66,0.19834767]
[1757298472099,2.53561964,876.6,875.66,0.19834767]
[1757298472499,2.53561964,876.55,875.66,0.19834767]
[1757298473899,2.53561964,876.55,875.66,0.02206504]
[1757298474099,2.53561964,876.14,874.56,0.76534722]
[1757298474399,1.01983432,875.29,874.56,0.76534722]
[1757298474602,0.79128324,875.24,874.58,0.76534722]
[1757298475198,1.52975149,875.4,874.59,0.76534722]
[1757298476003,1.52975149,875.36,874.6,2.06834722]
[1757298476601,1.52975149,875.37,874.61,0.76534722]
[1757298477605,1.52975149,875.37,874.79,0.19848569]
[1757298478402,1.52975149,875.39,874.79,0.19848569]
[1757298478901,1.52975149,875.41,874.79,0.19848569]
[1757298479401,1.52975149,875.45,874.79,0.19848569]
[1757298480503,1.1266402,875.45,874.79,0.19848569]
[1757298480804,2.53561964,876.14,874.79,0.19848569]
[1757298481501,2.53561964,876.25,874.79,0.19848569]
[1757298481903,2.53561964,876.45,874.79,0.19848569]
[1757298482107,2.53561964,877.29,874.79,0.19848569]
[1757298482307,0.19841326,876.88,874.79,0.19848569]
[1757298492018,2.54877251,876.85,874.79,0.19848569]
[1757298493120,0.19841326,876.88,874.79,0.19848569]
[1757298500628,1.52775645,876.04,874.79,0.19848569]
[1757298500828,1.52775645,876.03,874.79,0.19848569]
[1757298501225,1.52775645,876.04,874.79,0.19848569]
[1757298501424,1.52775645,876.03,874.79,0.19848569]
[1757298502729,1.52775645,875.98,874.79,0.19848569]
[1757298503931,1.52775645,876.02,874.79,0.19848569]
[1757298504428,1.52775645,876.03,874.79,0.19848569]
[1757298504627,1.01822478,875.78,874.79,0.19848569]
[1757298506331,1.01822478,875.79,874.79,0.19848569]
[1757298507728,1.01822478,875.8,874.79,0.19848569]
[1757298508329,1.01822478,876.17,874.94,0.766698]
[1757298509434,1.01822478,876.18,874.93,0.766698]
[1757298512238,1.01822478,876.18,874.92,0.766698]
[1757298513541,1.01822478,876.19,874.92,0.766698]
[1757298513741,1.01822478,876.13,874.95,0.766698]
[1757298514042,1.01822478,876.05,874.98,0.766698]
[1757298514237,0.19841326,876.88,874.98,0.766698]
[1757298514238,1.01822478,876.04,874.98,0.766698]
[1757298514641,1.01822478,876.03,874.99,0.766698]
[1757298515738,1.01822478,876.02,874.99,0.766698]
[1757298515942,1.01822478,876.02,875.0,1.311]
[1757298516242,1.01822478,876.01,875.0,1.311]
[1757298516742,1.01822478,876.0,875.0,2.077698]
[1757298517037,1.01822478,876.01,875.0,2.077698]
[1757298517236,1.01822478,876.01,875.0,1.311]
[1757298517739,1.01822478,875.95,875.02,0.766698]
[1757298518442,1.01822478,875.7,875.0,1.311]
[1757298518642,0.75958674,875.7,875.0,1.311]
[1757298519139,1.52775645,875.87,875.0,1.311]
[1757298519644,1.52775645,875.88,875.0,1.311]
[1757298521146,1.52775645,875.9,875.0,1.311]
[1757298521441,1.52775645,875.89,875.0,1.311]
[1757298524044,1.52775645,875.92,875.0,1.311]
[1757298524645,1.52775645,876.04,875.0,1.311]
[1757298525949,1.52775645,876.06,875.0,1.311]
[1757298528351,1.52775645,876.05,875.0,1.311]
[1757298528549,1.52775645,876.11,875.0,1.311]
[1757298528851,1.52775645,876.1,875.0,1.311]
[1757298531046,1.52775645,876.08,875.0,1.311]
[1757298533450,1.52775645,876.07,875.0,1.311]
[1757298534349,1.52775645,875.99,875.0,1.311]
[1757298535950,1.52775645,875.94,875.0,1.311]
[1757298536250,1.52775645,876.04,875.0,1.311]
[1757298536949,1.52775645,876.03,875.0,1.311]
[1757298537254,1.52775645,876.04,875.0,1.311]
[1757298537452,1.52775645,876.03,875.0,1.311]
[1757298538351,1.52775645,876.02,875.0,1.311]
[1757298538550,1.52775645,875.98,875.0,1.311]
[1757298538756,1.52775645,876.0,875.0,1.311]
[1757298539154,1.52775645,875.99,875.0,1.311]
[1757298539354,1.52775645,876.4,875.0,1.311]
[1757298540254,1.52775645,876.42,875.0,1.311]
[1757298541454,1.52775645,876.4,875.0,1.311]
[1757298542755,1.52775645,876.54,875.0,1.311]
[1757298542956,1.52775645,876.52,875.0,1.311]
[1757298543452,1.52775645,876.51,875.0,1.311]
[1757298543852,1.52775645,876.49,875.0,1.311]
[1757298544757,1.52775645,876.5,875.0,1.311]
[1757298544958,1.52775645,876.49,875.0,1.311]
[1757298547061,1.52775645,876.48,875.0,1.311]
[1757298547262,1.52775645,876.55,875.0,1.311]
[1757298547462,1.52775645,876.4,875.0,1.311]
[1757298547760,1.52775645,876.19,875.0,2.077698]
[1757298547960,1.52775645,876.19,875.0,1.311]
[1757298548159,0.19834146,877.1,875.0,1.311]
[1757298548160,1.52775645,876.24,875.0,1.311]
[1757298548358,1.52775645,876.45,875.17,0.766698]
[1757298548562,1.02048732,876.22,875.17,0.766698]
[1757298549361,1.02048732,876.23,875.16,0.766698]
[1757298550365,1.02048732,876.24,875.15,0.766698]
[1757298551365,1.02048732,876.25,875.14,0.766698]
[1757298552469,1.02048732,876.24,875.14,0.766698]
[1757298554268,1.02048732,876.2,875.16,0.766698]
[1757298554473,1.02048732,876.24,875.37,0.766698]
[1757298554768,1.02048732,876.51,875.41,0.766698]
[1757298554969,1.02048732,876.52,875.43,0.766698]
[1757298555173,1.02048732,876.57,875.43,0.766698]
[1757298555374,1.02048732,876.64,875.39,0.766698]
[1757298555574,1.02048732,876.67,875.42,0.766698]
[1757298555869,1.02048732,876.75,875.44,0.766698]
[1757298556374,1.02048732,876.79,875.41,0.766698]
[1757298556574,1.02048732,876.82,875.42,0.766698]
[1757298556870,1.02048732,876.83,875.43,0.766698]
[1757298557070,1.02048732,876.82,875.5,0.766698]
[1757298557271,1.02048732,876.88,875.46,0.766698]
[1757298558474,1.02048732,876.7,875.22,0.766698]
[1757298558674,1.02048732,876.66,875.23,0.766698]
[1757298558873,1.02048732,876.68,875.25,0.766698]
[1757298559274,1.02048732,876.71,875.22,0.766698]
[1757298559672,1.02048732,876.71,875.23,0.766698]
[1757298560377,1.02048732,876.73,875.21,0.766698]
[1757298561378,1.02048732,876.76,875.22,1.133]
[1757298561874,1.02048732,876.75,875.22,1.133]
[1757298562272,1.02048732,876.77,875.22,1.133]
[1757298563277,1.02048732,876.68,875.23,0.766698]
[1757298563473,0.19825558,877.64,875.28,0.766698]
[1757298563474,1.02048732,876.77,875.28,0.766698]
[1757298564478,1.02048732,876.79,875.26,0.766698]
[1757298565476,1.02048732,876.81,875.24,0.766698]
[1757298565681,1.02048732,876.82,875.25,0.766698]
[1757298565980,1.02048732,877.01,875.22,1.133]
[1757298566376,1.02048732,876.69,875.22,1.133]
[1757298566577,1.02048732,876.66,875.22,1.133]
[1757298566775,1.02048732,876.67,875.22,1.133]
[1757298566980,1.02048732,876.63,875.22,1.133]
[1757298567176,1.02048732,876.61,875.22,1.133]
[1757298567379,1.02048732,876.59,875.22,1.133]
[1757298568482,1.02048732,876.63,875.22,1.133]
[1757298570286,1.02048732,876.64,875.22,1.133]
[1757298570482,1.02048732,876.63,875.22,1.133]
[1757298572486,1.02048732,876.64,875.22,1.133]
[1757298574788,1.02048732,876.65,875.22,1.133]
[1757298576688,1.02048732,876.63,875.22,1.133]
[1757298576884,1.02048732,876.62,875.22,1.133]
[1757298577083,1.02048732,876.61,875.22,1.133]
[1757298578685,1.02048732,876.62,875.22,1.133]
[1757298580489,1.02048732,876.58,875.22,1.133]
[1757298580788,1.02048732,876.61,875.22,1.133]
[1757298580988,2.54877251,877.41,875.22,1.133]
[1757298580989,1.02048732,876.66,875.22,1.133]
[1757298582187,1.02048732,876.65,875.22,1.133]
[1757298583384,1.02048732,876.66,875.22,1.133]
[1757298585487,1.02048732,876.65,875.22,1.133]
[1757298587491,1.02048732,876.66,875.22,1.133]
[1757298590694,1.02048732,876.65,875.22,1.133]
[1757298590894,1.02048732,876.61,875.22,1.133]
[1757298591395,1.02048732,876.6,875.22,1.133]
[1757298591692,1.02048732,876.59,875.22,1.133]
[1757298592195,1.02048732,876.61,875.22,1.133]
[1757298592990,1.02048732,876.62,875.22,1.133]
[1757298593194,1.02048732,876.61,875.22,1.133]
[1757298594295,1.02048732,876.6,875.22,1.133]
[1757298595293,1.02048732,876.59,875.22,1.133]
[1757298596296,1.02048732,876.58,875.22,1.133]
[1757298596495,1.02048732,876.58,875.17,0.76159862]
[1757298596993,1.02048732,876.57,875.17,0.76159862]
[1757298597195,1.02048732,876.56,875.18,0.76159862]
[1757298597393,1.02048732,876.56,875.01,1.02392054]
[1757298597394,1.02048732,876.55,875.19,0.76159862]
[1757298598097,1.02048732,876.6,875.17,0.76159862]
[1757298598298,2.54877251,877.37,874.79,0.19848569]
[1757298598299,1.02048732,876.68,875.14,0.76159862]
[1757298598593,1.02048732,876.88,875.36,0.76159862]
[1757298599393,1.02048732,876.87,875.37,0.76159862]
[1757298601400,1.02048732,876.86,875.38,0.76159862]
[1757298601698,1.02048732,876.86,875.31,1.117]
[1757298601699,1.02048732,876.88,875.37,0.76159862]
[1757298602099,1.02048732,876.88,875.38,0.76159862]
[1757298602299,1.02048732,876.86,875.39,0.76159862]
[1757298602500,1.02048732,876.89,875.42,0.76159862]
[1757298603201,1.02048732,876.89,875.43,0.76159862]
[1757298603500,1.02048732,876.87,875.44,0.76159862]
[1757298604404,1.02048732,876.85,875.46,0.76159862]
[1757298605400,1.02048732,876.84,875.48,0.76159862]
[1757298605697,1.02048732,876.84,875.48,0.76375458]
[1757298606201,1.02048732,876.83,875.48,0.76375458]
[1757298606498,1.02048732,876.81,875.5,0.76375458]
[1757298606899,1.02048732,876.91,875.46,0.76375458]
[1757298607103,1.02048732,876.88,875.42,0.76375458]
[1757298607303,0.19825558,877.64,875.45,0.76375458]
[1757298607304,1.02048732,876.84,875.45,0.76375458]
[1757298607500,1.02048732,876.81,875.47,0.76375458]
[1757298608402,1.02048732,876.8,875.48,0.76375458]
[1757298608598,1.02048732,876.54,875.31,1.117]
[1757298609403,1.02048732,876.53,875.31,1.117]
[1757298609905,1.02048732,876.54,875.31,1.117]
[1757298610503,1.02048732,876.53,875.31,1.117]
[1757298610802,1.02048732,876.49,875.4,0.76375458]
[1757298611204,1.02048732,876.51,875.39,0.76375458]
[1757298611405,1.02048732,876.49,875.41,0.76375458]
[1757298611601,1.02048732,876.51,875.43,0.76375458]
[1757298612305,1.02048732,876.49,875.45,0.76375458]
[1757298613101,1.02048732,876.49,875.44,0.76375458]
[1757298613503,1.02048732,876.45,875.45,0.76375458]
[1757298613801,1.02048732,876.45,875.31,1.117]
[1757298613802,1.02048732,876.46,875.46,0.76375458]
[1757298614502,1.02048732,876.43,875.49,0.76375458]
[1757298616906,2.54877251,877.44,875.31,1.117]
[1757298616907,1.02048732,876.44,875.5,0.76375458]
[1757298617708,1.02048732,876.45,875.51,0.76375458]
[1757298618002,1.02048732,876.48,875.53,0.76375458]
[1757298618404,1.02048732,876.48,875.52,0.76375458]
[1757298618607,1.02048732,876.55,875.6,0.76375458]
[1757298619304,1.52775645,876.76,875.6,0.76375458]
[1757298619305,1.02048732,876.56,875.6,0.76375458]
[1757298620408,0.76443172,876.56,875.59,0.76375458]
[1757298620610,1.52775645,876.67,875.62,0.76375458]
[1757298620912,1.52775645,876.73,875.61,0.76375458]
[1757298621206,1.52775645,876.7,875.62,0.76375458]
[1757298621406,1.52775645,876.69,875.61,0.76375458]
[1757298622210,1.52775645,876.7,875.61,0.76375458]
[1757298622810,1.52775645,876.9,875.54,0.76375458]
[1757298623104,1.52775645,876.87,875.48,0.76375458]
[1757298623410,1.52775645,876.78,875.4,0.76375458]
[1757298624110,1.52775645,876.62,875.41,0.76375458]
[1757298624306,1.52775645,876.59,875.37,0.76375458]
[1757298625407,1.52775645,876.59,875.38,0.76375458]
[1757298625608,1.52775645,876.59,875.37,0.76375458]
[1757298626108,1.52775645,876.56,875.35,0.76375458]
[1757298626312,1.52775645,876.57,875.34,0.76375458]
[1757298626612,1.52775645,876.56,875.33,0.76375458]
[1757298626813,1.52775645,876.54,875.31,1.88075458]
[1757298627414,1.52775645,876.55,875.31,1.88075458]
[1757298628218,1.52775645,876.54,875.31,1.117]
[1757298628417,1.52775645,876.4,875.31,1.117]
[1757298628615,1.52775645,876.33,875.31,1.117]
[1757298628814,1.52775645,876.34,875.31,1.117]
[1757298629218,1.52775645,876.32,875.31,1.117]
[1757298629613,1.52775645,876.33,875.31,1.117]
[1757298629918,1.52775645,876.34,875.31,1.117]
[1757298630118,1.52775645,876.27,875.31,1.117]
[1757298630313,1.52775645,876.28,875.31,1.117]
[1757298630912,1.52775645,876.27,875.31,1.117]
[1757298631318,1.52775645,876.28,875.31,1.117]
[1757298631516,1.52775645,876.29,875.31,1.117]
[1757298631718,1.52775645,876.28,875.31,1.117]
[1757298631919,1.52775645,876.23,875.31,1.117]
[1757298632316,1.52775645,876.25,875.31,1.117]
[1757298632516,1.52775645,876.3,875.31,1.117]
[1757298633217,2.54877251,877.04,875.31,1.117]
[1757298633218,1.52775645,876.31,875.31,1.117]
[1757298633717,1.52775645,876.3,875.31,1.117]
[1757298634121,1.52775645,876.31,875.31,1.117]
[1757298634420,1.52775645,876.28,875.31,1.117]
[1757298634614,1.52775645,876.46,875.31,1.117]
[1757298634819,1.52775645,876.39,875.31,1.117]
[1757298635219,1.52775645,876.4,875.31,1.117]
[1757298635714,1.52775645,876.39,875.31,1.117]
[1757298635915,1.52775645,876.4,875.31,1.117]
[1757298636317,1.52775645,876.41,875.31,1.117]
[1757298637122,1.52775645,876.51,875.31,1.117]
[1757298637417,1.52775645,876.44,875.31,1.117]
[1757298637622,1.52775645,876.43,875.31,1.117]
[1757298638319,1.52775645,876.44,875.31,1.117]
[1757298638524,1.52775645,876.65,875.31,1.117]
[1757298638718,2.54877251,877.36,875.31,1.117]
[1757298638719,1.52775645,876.63,875.31,1.117]
[1757298639418,1.52775645,876.64,875.31,1.117]
[1757298640224,1.52775645,876.65,875.31,1.117]
[1757298640725,1.52775645,876.74,875.31,1.117]
[1757298641222,1.52775645,876.75,875.31,1.117]
[1757298641424,1.52775645,876.76,875.31,1.117]
[1757298642123,1.52775645,876.77,875.31,1.117]
[1757298642325,1.52775645,876.77,874.97,0.76375458]
[1757298642527,1.52775645,876.78,874.97,0.76375458]
[1757298643323,1.52775645,876.79,874.96,0.76375458]
[1757298643522,1.52775645,876.7,874.99,0.76375458]
[1757298643726,1.52775645,876.69,874.98,0.76375458]
[1757298644223,1.52775645,876.7,874.97,0.76375458]
[1757298644425,1.52775645,876.71,874.97,0.76375458]
[1757298644627,0.19825558,877.64,874.97,0.76375458]
[1757298644628,1.52775645,876.7,874.97,0.76375458]
[1757298645323,1.52775645,876.71,874.96,0.76375458]